Cogmind - Beta 11.1 @@@ ROGUE MODE // 2022.09.26 @ 00:40:54 Player: DuckBoy Result: Destroyed by JM-5U3(z) with Makeshift Laser Performance ------------- Evolutions (4) 2000 Regions Visited (10) 2000 Robots Destroyed (223) 1115 Value Destroyed (6987) 6987 Prototype IDs (15) 300 Alien Tech Used (0) 0 Bonus (1037) 1037 TOTAL SCORE: 13439 Bonus ------- High Alert Combat Kills 797 Met Imprinter 300 Friendly Fire -60 Cogmind --------- Core Integrity 0/850 Matter 300/300 Energy 100/100 System Corruption 0% Temperature Cool (9) Movement Walking (140) Location -6/Zion Parts ------- > --- POWER (2) -------- (None) > --- PROPULSION (2) --- Makeshift Leg > --- UTILITY (7) ------ Graphene Brace > --- WEAPON (4) ------- Powered Hammer Makeshift Axe Makeshift Sword > --- INVENTORY (5) ---- Light Nuclear Core System Restoration Module Precision Shock Rifle EM Pulse Cannon Improved EM Pulse Cannon Peak State ------------ > --- POWER ------------ Reinforced Deuterium Engine Reinforced Deuterium Engine > --- PROPULSION ------- Armored Huge Wheel > --- UTILITY ---------- Advanced Heat Sink Advanced Heat Sink Huge Storage Unit Spectral Analyzer Experimental Weapon Shielding Improved Heavy Armor Plating > --- WEAPON ----------- Plasma Cannon Phase Cannon Heavy Plasma Cannon Cooled Plasma Cannon > --- INVENTORY -------- Light Nuclear Core Armored Huge Wheel Advanced Heat Sink Improved Cooling System High-capacity Battery Particle Charger Improved Medium Armor Plating Medium Reflective Plating Graphene Brace System Restoration Module Hacking Drone Bay Precision Shock Rifle Precision Shock Rifle Precision Shock Rifle Precision Shock Rifle Precision Shock Rifle High-powered Shock Rifle EM Pulse Cannon Improved EM Pulse Cannon Proton Cannon Phase Cannon Heavy Plasma Cannon Long-range Missile Launcher Powered Hammer [Rating: 83] Favorites ----------- Power Reinforced Deuterium Engine Engine Reinforced Deuterium Engine Power Core Light Nuclear Core Propulsion Armored Huge Wheel Treads Light Treads Leg Makeshift Leg Wheel Armored Huge Wheel Hover Unit Cooled Airjet Utility Huge Storage Unit Device Improved Heat Sink Storage Huge Storage Unit Processor Advanced Signal Interpreter Hackware Hacking Suite Protection Improved Heavy Armor Plating Weapon Plasma Cannon Energy Gun Precision Shock Rifle Energy Cannon Plasma Cannon Ballistic Gun Assault Rifle Ballistic Cannon Bore Cannon Launcher Mini Grenade Launcher Impact Weapon Powered Hammer Slashing Weapon Chainsword Special Melee Weapon Datajack Build | -11 -10 -10 -10 -9 -8 -7 -6 -6 -6 -6 ------- Run | Scr Mat Min Exi Min Mat Fac Fac Low Low Zio Slots Evolved 8 | . . . . . 4 2 2 . . . Power 1 | . . . . . 1 . . . . . Propulsion . | . . . . . . . . . . . Utility 5 | . . . . . 1 2 2 . . . Weapon 2 | . . . . . 2 . . . . . Parts Attached 189 | 5 11 12 . 7 50 54 22 . 3 25 Power 25 | 1 1 2 . . 8 8 3 . . 2 Engine 21 | 1 1 2 . . 7 5 3 . . 2 Core 4 | . . . . . 1 3 . . . . Reactor . | . . . . . . . . . . . Propulsion 30 | 2 1 . . 2 13 6 1 . . 5 Treads 13 | . 1 . . 2 9 1 . . . . Leg 4 | . . . . . . . . . . 4 Wheel 12 | 2 . . . . 4 4 1 . . 1 Hover 1 | . . . . . . 1 . . . . Flight . | . . . . . . . . . . . Utility 56 | . 3 4 . 1 10 15 9 . 3 11 Device 27 | . . 2 . . 5 10 5 . 2 3 Storage 3 | . 2 1 . . . . . . . . Processor 4 | . . . . . . . . . 1 3 Hackware 1 | . . . . . . 1 . . . . Protection 21 | . 1 1 . 1 5 4 4 . . 5 Artifact . | . . . . . . . . . . . Weapon 78 | 2 6 6 . 4 19 25 9 . . 7 Energy Gun 16 | . . . . 1 7 5 1 . . 2 Energy Cannon 21 | . . . . . 1 10 8 . . 2 Ballistic Gun 18 | 2 4 3 . 1 7 1 . . . . Ballistic Cannon 1 | . . . . . . 1 . . . . Launcher 13 | . 2 2 . 2 4 3 . . . . Special Weapon . | . . . . . . . . . . . Impact Weapon 2 | . . . . . . 1 . . . 1 Slashing Weapon 4 | . . . . . . 2 . . . 2 Piercing Weapon . | . . . . . . . . . . . Special Melee Weapon 3 | . . 1 . . . 2 . . . . Unidentified Prototypes 14 | . . . . . 2 6 3 . . 3 Corrupted Parts 6 | . . . . . 6 . . . . . System Corruption 38 | . . . . . 38 . . . . . Parts Lost 59 | . 1 . . . 19 11 2 . 1 25 Power 9 | . . . . . 3 2 . . . 4 Propulsion 9 | . . . . . 4 . . . . 5 Utility 20 | . . . . . 3 6 1 . 1 9 Weapon 21 | . 1 . . . 9 3 1 . . 7 Highest Loss Streak 23 | . 1 . . . 5 3 1 . 1 23 To Critical Strikes 1 | . . . . . . . . . . 1 Average Slot Usage (%) 90 | . 90 100 100 99 91 89 85 86 85 83 Engine 13 | . 14 14 14 14 15 13 11 13 13 12 Treads 5 | . 14 14 14 13 9 1 . . . . Wheel 8 | . 14 14 14 14 8 6 6 6 6 5 Device 12 | . . 2 . . 7 16 19 20 19 20 Storage 8 | . 10 14 14 14 9 7 6 6 6 5 Hackware 2 | . . . . . . 4 6 6 6 . Protection 8 | . 8 11 14 13 8 5 5 6 6 11 Energy Gun 4 | . . . . 3 12 8 . . . . Energy Cannon 13 | . . . . . 1 15 25 26 26 24 Ballistic Gun 7 | . 27 21 28 21 14 . . . . . Launcher 1 | . . 4 . 2 2 1 . . . . Naked Turns . | . . . . . . . . . . . Heaviest Build 163 | 9 52 101 101 104 120 140 163 162 162 163 Greatest Support 46 | 26 16 16 16 16 46 28 28 28 28 40 Greatest Overweight (x) 8 | . 3 6 6 6 7 8 5 5 5 6 Average Overweight (x) 4 | . 1 3 6 5 6 4 4 5 5 4 Largest Inventory Capacity 25 | 5 20 25 25 25 25 25 25 25 25 25 Average Capacity 24 | 5 15 21 25 25 25 25 25 25 25 24 Most Carried 25 | 3 20 25 25 25 25 25 25 25 25 25 Average Carried 23 | 2 12 20 25 24 24 24 24 25 24 23 Final Capacity 25 | 5 20 25 25 25 25 25 25 25 25 5 Final Carried 25 | 3 20 25 25 25 25 25 25 25 25 5 Class Distribution -------------------- 43% | Scavenger-Tank 35% | Mutant 11% | Scavenger-Mutant 4% | Tank 3% | Pyromaniac-Tank Dominant Class ---------------- Mutant | -10/Materials Mutant | -10/Mines Mutant | -10/Exiles Mutant | -9/Mines Scavenger-Tank | -8/Materials Scavenger-Tank | -7/Factory Scavenger-Tank | -6/Factory Scavenger-Tank | -6/Lower Caves Scavenger-Tank | -6/Lower Caves Scavenger-Tank | -6/Zion Resources | -11 -10 -10 -10 -9 -8 -7 -6 -6 -6 -6 ----------- Run | Scr Mat Min Exi Min Mat Fac Fac Low Low Zio Matter Collected 3815 | 182 496 160 70 215 1136 1063 231 10 30 222 Remotely . | . . . . . . . . . . . Salvage Created 9246 | . 484 279 . 356 2282 3203 1320 445 511 366 Parts 448 | . 40 13 . 21 133 142 52 7 11 29 Haulers Intercepted 8 | . 1 . . . 3 3 1 . . . Recyclers Shooed 7 | . 2 . . . 3 1 1 . . . Parts Field Recycled . | . . . . . . . . . . . Retrieved Matter . | . . . . . . . . . . . Parts Self-Destructed 21 | . . . . . . . . 7 11 3 Prevented 3 | . . . . . . . . . 3 . Kills | -11 -10 -10 -10 -9 -8 -7 -6 -6 -6 -6 ------- Run | Scr Mat Min Exi Min Mat Fac Fac Low Low Zio Combat Hostiles Destroyed 159 | . 15 6 . 13 43 52 16 7 6 1 Melee 4 | . . . . . . 4 . . . . Guns 50 | . 8 5 . 7 25 5 . . . . Cannons 55 | . . . . . 2 28 13 5 6 1 AOE 38 | . 7 1 . 6 14 10 . . . . Classes Destroyed 19 | . 5 1 . 3 4 3 1 . . 2 Worker 16 | . . 1 . . 8 5 2 . . . Builder 4 | . . . . 1 2 1 . . . . Tunneler 2 | . . . . . 1 1 . . . . Hauler 8 | . 1 . . . 3 3 1 . . . Recycler 9 | . . . . . 5 4 . . . . Mechanic 2 | . . . . . . 1 1 . . . Operator 4 | . 1 . . . 2 1 . . . . Watcher 10 | . 2 . . . 2 3 3 . . . Swarmer 32 | . 6 . . 3 16 7 . . . . Grunt 85 | . 9 6 . 6 14 30 9 6 5 . Brawler 5 | . . . . 2 . 2 . 1 . . Duelist 5 | . . . . 2 1 1 . . 1 . Sentry 21 | . . . . . 11 5 5 . . . Hunter 1 | . . . . . . 1 . . . . Programmer 7 | . . . . . . 6 1 . . . Heavy 1 | . . . . . 1 . . . . . Behemoth 1 | . . . . . . . 1 . . . Zionite 17 | . . . . . . . . . . 17 Mutant 1 | . . . . . . . . . . 1 Best Kill Streak 9 | . 6 3 . 5 9 9 9 4 3 5 Combat Bots Only 6 | . 6 2 . 5 5 5 4 4 3 1 Max Kills in Single Turn 5 | . 4 1 . 3 5 4 2 1 2 1 Gunslinging . | . . . . . . . . . . . Exploded 4 | . 4 1 . 3 4 2 . . . . Melee 1 | . . . . . . 1 . . . . Uniques/NPCs Destroyed . | . . . . . . . . . . . Combat | -11 -10 -10 -10 -9 -8 -7 -6 -6 -6 -6 -------- Run | Scr Mat Min Exi Min Mat Fac Fac Low Low Zio Damage Taken 12158 | . 403 192 . 218 2874 2934 1479 414 116 3528 Core 1885 | . 90 30 . 29 424 459 120 55 . 678 Absorbed by Shields . | . . . . . . . . . . . Redirected to Shielding 163 | . . . . . . . . . . 163 Regen/Repaired (Parts) 116 | . . . . . . 65 51 . . . Core Remaining (%) 49 | 100 . . . 40 22 34 . . . . Volleys Fired 468 | . 55 21 . 19 154 118 40 14 9 38 Largest 4 | . 2 2 . 2 4 4 4 4 4 4 Hottest 345 | . 50 40 . 95 170 320 345 290 290 300 Shots Fired 1249 | . 103 31 . 36 371 322 156 56 36 138 Gun 589 | . 101 30 . 29 334 87 . . . 8 Cannon 603 | . . . . . 3 223 155 56 36 130 Launcher 57 | . 2 1 . 7 34 12 1 . . . Special . | . . . . . . . . . . . Kinetic 380 | . 101 30 . 25 208 16 . . . . Thermal 739 | . . . . 4 127 231 155 56 36 130 Explosive 37 | . 2 1 . 7 14 12 1 . . . Electromagnetic 93 | . . . . . 22 63 . . . 8 Robot Hit Streak 19 | . 10 4 . 18 16 15 19 8 7 13 Robot Miss Streak 5 | . 5 2 . 2 5 5 5 5 2 4 Penetration Max . | . . . . . . . . . . . Secondary Targets 7 | . 1 1 . 1 3 1 . . . . Max Gunslinging Chain 1 | . 1 1 . 1 1 1 . . . . Shots Hit Robots 775 | . 61 19 . 28 212 212 93 32 20 98 Core Hits 374 | . 32 12 . 26 102 114 36 10 14 28 Critical Kills 7 | . . 2 . . 1 1 1 1 . 1 Critical Parts Destroyed 3 | . 1 . . . . 2 . . . . Critical Strikes 18 | . 1 2 . . 5 7 1 1 . 1 Burn 4 | . . . . . 4 . . . . . Meltdown 3 | . . . . . . 1 1 1 . . Destroy 6 | . 1 2 . . 1 2 . . . . Corrupt 2 | . . . . . . 2 . . . . Smash 1 | . . . . . . . . . . 1 Sever 2 | . . . . . . 2 . . . . Melee Attacks 60 | . . . . . . 22 . . . 38 Impact 10 | . . . . . . 4 . . . 6 Slashing 49 | . . . . . . 17 . . . 32 Piercing . | . . . . . . . . . . . Sneak Attacks 3 | . . . . . . 3 . . . . Combat Hostiles . | . . . . . . . . . . . Follow-up Attacks 8 | . . . . . . 1 . . . 7 Damage Inflicted 22381 | . 1149 328 . 1007 5023 7015 3022 1004 688 3145 Guns 5893 | . 794 240 . 318 3350 1146 . . . 45 Cannons 10566 | . . . . . 75 3590 3022 1004 688 2187 Explosions 4348 | . 355 88 . 689 1598 1618 . . . . Melee 1574 | . . . . . . 661 . . . 913 Ramming . | . . . . . . . . . . . Kinetic 3386 | . 794 240 . 234 1920 198 . . . . Thermal 12269 | . . . . 84 1528 3756 3022 1004 688 2187 Explosive 3391 | . 355 88 . 689 896 1363 . . . . Electromagnetic 1761 | . . . . . 679 1037 . . . 45 Impact 285 | . . . . . . 55 . . . 230 Slashing 1289 | . . . . . . 606 . . . 683 Piercing . | . . . . . . . . . . . Highest Corruption 38 | . . . . . 38 3 . . . . Average Corruption 8 | . . . . . 36 1 . . . . Corruption Purged 3 | . . . . . . 3 . . . . Corruption Blocked . | . . . . . . . . . . . Effects 47 | . . . . . 23 24 . . . . Message Errors 9 | . . . . . 6 3 . . . . Matter Fused 19 | . . . . . 7 12 . . . . Heat Flow Errors 7 | . . . . . 3 4 . . . . Energy Discharges 8 | . . . . . 5 3 . . . . Data Loss (minor) 3 | . . . . . 2 1 . . . . Weapon Failures 1 | . . . . . . 1 . . . . Overload Shots . | . . . . . . . . . . . Overflow Damage 380 | . . . . 7 21 251 15 21 16 49 Projectiles 167 | . . . . . . 66 15 21 16 49 Explosions 130 | . . . . 7 21 102 . . . . Melee 83 | . . . . . . 83 . . . . Knockbacks 3 | . . . . . . 2 . . . 1 Impact 2 | . . . . . . 1 . . . 1 Kinetic 1 | . . . . . . 1 . . . . Secondary . | . . . . . . . . . . . Self-Inflicted Damage 263 | . . . . 47 31 185 . . . . Shots 8 | . . . . 1 2 5 . . . . Rammed . | . . . . . . . . . . . Targets Rammed . | . . . . . . . . . . . Kicked . | . . . . . . . . . . . Crushed . | . . . . . . . . . . . Highest Temperature 728 | . 5 6 . 129 345 387 408 181 250 728 Average Temperature 112 | . 2 2 . 35 109 120 125 79 83 145 Received Heat Transfer 3550 | . 183 105 . 42 963 1065 465 229 75 423 Effects 17 | . . . . . 1 5 . . 1 10 Shutdowns 2 | . . . . . . 1 . . . 1 Energy Bleed 5 | . . . . . 1 2 . . 1 1 Interference 5 | . . . . . . 2 . . . 3 Matter Decay 1 | . . . . . . . . . . 1 Damage (minor) 1 | . . . . . . . . . . 1 Damage (major) 3 | . . . . . . . . . . 3 Siege Activations . | . . . . . . . . . . . Robots Corrupted 3 | . . . . . 2 1 . . . . Combat Hostiles 3 | . . . . . 2 1 . . . . Parts Fried 8 | . . . . . 3 5 . . . . Impact Corruptions 1 | . . . . . . 1 . . . . Robots Melted 9 | . . . . . . 3 3 2 . 1 Combat Hostiles 8 | . . . . . . 3 3 2 . . Parts Melted 52 | . . . . . 9 16 14 5 4 4 Heat Transferred 19533 | . . . . 148 3504 6824 4051 1583 1046 2377 Parts Sabotaged . | . . . . . . . . . . . Parts Stolen . | . . . . . . . . . . . Parts Stripped . | . . . . . . . . . . . Power Chain Reactions 5 | . . . . . 3 2 . . . . Missiles Intercepted . | . . . . . . . . . . . Alert | -11 -10 -10 -10 -9 -8 -7 -6 -6 -6 -6 ------- Run | Scr Mat Min Exi Min Mat Fac Fac Low Low Zio Peak Influence 1145 | . 399 196 . 300 510 1145 797 . . . Initial 560 | . . 8 . . 72 231 560 . . . Average 333 | . 189 45 . 107 280 435 604 . . . Maximum Alert Level 4 | . 1 . . 1 2 4 3 . . . Low Security (%) 36 | 100 60 100 . 82 27 20 . . . . Level 1 31 | . 39 . . 17 56 40 . . . . Level 2 22 | . . . . . 15 18 86 . . . Level 3 7 | . . . . . . 16 13 . . . Level 4 1 | . . . . . . 4 . . . . Level 5 . | . . . . . . . . . . . High Security . | . . . . . . . . . . . Max Security . | . . . . . . . . . . . Squads Dispatched 27 | . 2 . . . 8 12 5 . . . Investigation 7 | . . . . . 3 3 1 . . . Extermination 6 | . . . . . . 5 1 . . . Reinforcement 8 | . 2 . . . 2 3 1 . . . Assault 1 | . . . . . . 1 . . . . Garrison 5 | . . . . . 3 . 2 . . . Intercept . | . . . . . . . . . . . Searches Triggered . | . . . . . . . . . . . Construction Impeded 2 | . . . . . 1 1 . . . . Haulers Reinforced 1 | . . . . . . 1 . . . . Active Scanning Responses . | . . . . . . . . . . . Cargo Convoy Interrupts . | . . . . . . . . . . . Stealth | -11 -10 -10 -10 -9 -8 -7 -6 -6 -6 -6 --------- Run | Scr Mat Min Exi Min Mat Fac Fac Low Low Zio Distress Signals 8 | . 4 . . . 2 1 1 . . . Communications Jammed . | . . . . . . . . . . . Distress Signals . | . . . . . . . . . . . Times Spotted 233 | . 25 6 . 13 58 69 24 7 6 25 Peak Tracking Total 9 | . 9 2 . 5 6 4 6 4 3 6 Tactical Retreats 12 | . . . . . 4 5 1 . . 2 Traps | -11 -10 -10 -10 -9 -8 -7 -6 -6 -6 -6 ------- Run | Scr Mat Min Exi Min Mat Fac Fac Low Low Zio Traps Triggered 7 | . . . . . 1 5 1 . . . Indirectly 1 | . . . . . 1 . . . . . Trap Hack Attempts 83 | . . 30 . . . 53 . . . . Triggered . | . . . . . . . . . . . Disarmed . | . . . . . . . . . . . Reprogrammed 7 | . . 3 . . . 4 . . . . Reused . | . . . . . . . . . . . Traps Extracted 2 | . . 2 . . . . . . . . Installed . | . . . . . . . . . . . Triggered 3 | . . . . . . . . . 3 . Most Traps Carried 1 | . . 1 . . . . . . . . Machines | -11 -10 -10 -10 -9 -8 -7 -6 -6 -6 -6 ---------- Run | Scr Mat Min Exi Min Mat Fac Fac Low Low Zio Machines Disabled 20 | . 1 . . . 5 12 2 . . . Max in Single Turn 5 | . 1 . . . 1 5 1 . . . Garrison Access 5 | . . . . . 1 2 2 . . . Machines Sabotaged . | . . . . . . . . . . . Garrisons Compromised . | . . . . . . . . . . . Overloaded Fab Kills . | . . . . . . . . . . . Hacking | -11 -10 -10 -10 -9 -8 -7 -6 -6 -6 -6 --------- Run | Scr Mat Min Exi Min Mat Fac Fac Low Low Zio Machines Accessed 39 | . 3 1 1 . 10 17 7 . . . Terminals 19 | . 3 . . . 7 7 2 . . . Fabricators 3 | . . . . . . 3 . . . . Repair Stations 2 | . . . . . . 1 1 . . . Recycling Units 3 | . . . . . . 2 1 . . . Scanalyzers 5 | . . . . . 2 2 1 . . . Garrison Access 5 | . . . . . 1 2 2 . . . Total Hacks 123 | . 13 1 4 . 34 46 25 . . . Successful 67 | . 8 1 4 . 21 22 11 . . . Failed 56 | . 5 . . . 13 24 14 . . . Catastrophic 6 | . . . . . 3 3 . . . . Database Lockouts . | . . . . . . . . . . . Manual 50 | . 13 . . . 13 13 11 . . . Terminals 61 | . 13 . . . 17 22 9 . . . Fabricators 7 | . . . . . . 7 . . . . Repair Stations 5 | . . . . . . 2 3 . . . Recycling Units 9 | . . . . . . 3 6 . . . Scanalyzers 26 | . . . . . 15 7 4 . . . Garrison Access 10 | . . . . . 2 5 3 . . . Terminal Hacks 22 | . 6 1 4 . 4 6 1 . . . Record 4 | . . . 4 . . . . . . . Open Door 1 | . . 1 . . . . . . . . Level Access Points 1 | . . . . . . 1 . . . . Branch Access Points 1 | . . . . . . . 1 . . . Terminal Index 2 | . 1 . . . 1 . . . . . Alert Level 3 | . 1 . . . . 2 . . . . Unreport Threat 5 | . 1 . . . 2 2 . . . . Locate Traps 1 | . . . . . . 1 . . . . Recall Reinforcements 1 | . 1 . . . . . . . . . Hauler Manifests 2 | . 1 . . . 1 . . . . . Zone Layout 1 | . 1 . . . . . . . . . Fabricator Hacks 5 | . . . . . . 5 . . . . Network Status 1 | . . . . . . 1 . . . . Load Schematic 2 | . . . . . . 2 . . . . Build 2 | . . . . . . 2 . . . . Repair Station Hacks 4 | . . . . . . 2 2 . . . Scan Component 2 | . . . . . . 1 1 . . . Repair 2 | . . . . . . 1 1 . . . Recycling Unit Hacks . | . . . . . . . . . . . Scanalyzer 23 | . . . . . 15 6 2 . . . Insert Component 11 | . . . . . 7 3 1 . . . Analyze 12 | . . . . . 8 3 1 . . . Garrison Access Hacks 5 | . . . . . 1 2 2 . . . Seal Access 5 | . . . . . 1 2 2 . . . Unauthorized Hacks 8 | . 2 . . . 1 1 4 . . . Terminals 5 | . 2 . . . 1 . 2 . . . Assimilate 1 | . 1 . . . . . . . . . Botnet 4 | . 1 . . . 1 . 2 . . . Fabricators . | . . . . . . . . . . . Repair Stations . | . . . . . . . . . . . Recycling Units 3 | . . . . . . 1 2 . . . Recyclers 1 | . . . . . . . 1 . . . Mask 2 | . . . . . . 1 1 . . . Scanalyzers . | . . . . . . . . . . . Garrison Access . | . . . . . . . . . . . Data Cores Recovered . | . . . . . . . . . . . Used . | . . . . . . . . . . . Hacking Detections 32 | . 3 . . . 9 15 5 . . . Full Trace Events 6 | . . . . . 2 3 1 . . . Feedback Events . | . . . . . . . . . . . Feedback Blocked . | . . . . . . . . . . . Robot Schematics Acquired 4 | . . . . . . . . . . 4 Robots Built . | . . . . . . . . . . . Authchips . | . . . . . . . . . . . Time . | . . . . . . . . . . . Total Robot Build Rating . | . . . . . . . . . . . Part Schematics Acquired 24 | . . . . . 6 3 1 . . 14 Parts Built 1 | . . . . . . 1 . . . . Authchips . | . . . . . . . . . . . Time 268 | . . . . . . 268 . . . . Total Part Build Rating 4 | . . . . . . 4 . . . . Parts Repaired 2 | . . . . . . 1 1 . . . Time 57 | . . . . . . 35 22 . . . Parts Recycled . | . . . . . . . . . . . Recycled Matter . | . . . . . . . . . . . Retrieved Matter . | . . . . . . . . . . . Retrieved Components . | . . . . . . . . . . . Parts Scanalyzed 10 | . . . . . 6 3 1 . . . Part Schematics Acquired 10 | . . . . . 6 3 1 . . . Parts Damaged . | . . . . . . . . . . . Bothacking | -11 -10 -10 -10 -9 -8 -7 -6 -6 -6 -6 ------------ Run | Scr Mat Min Exi Min Mat Fac Fac Low Low Zio Used RIF Installer . | . . . . . . . . . . . Robots Hacked 1 | . . . . . . 1 . . . . Non-combat 1 | . . . . . . 1 . . . . Combat . | . . . . . . . . . . . Robot Hacks Applied 1 | . . . . . . 1 . . . . find_chute 1 | . . . . . . 1 . . . . Relay Couplers Released . | . . . . . . . . . . . Fabnet Peak Effective % . | . . . . . . . . . . . Robots Rewired 1 | . . . . . . . 1 . . . Allies Hacked . | . . . . . . . . . . . Hacks Repelled . | . . . . . . . . . . . Allies | -11 -10 -10 -10 -9 -8 -7 -6 -6 -6 -6 -------- Run | Scr Mat Min Exi Min Mat Fac Fac Low Low Zio Total Allies 1 | . . . . . . . 1 . . . Largest Group 1 | . . . . . . . 1 . . . Highest-Rated Group 41 | . . . . . . . 41 . . . Highest-Rated Ally 41 | . . . . . . . 41 . . . Total Orders . | . . . . . . . . . . . Ally Attacks 1 | . . . . . . . 1 . . . Total Damage 41 | . . . . . . . 41 . . . Kills . | . . . . . . . . . . . Allies Corrupted . | . . . . . . . . . . . Allies Melted . | . . . . . . . . . . . Intel | -11 -10 -10 -10 -9 -8 -7 -6 -6 -6 -6 ------- Run | Scr Mat Min Exi Min Mat Fac Fac Low Low Zio Robot Analysis Total . | . . . . . . . . . . . Derelict Logs Recovered 7 | . . 3 . 2 . . . . 1 1 Drone Launches . | . . . . . . . . . . . Drone Recoveries . | . . . . . . . . . . . Exploration | -11 -10 -10 -10 -9 -8 -7 -6 -6 -6 -6 ------------- Run | Scr Mat Min Exi Min Mat Fac Fac Low Low Zio Turns Passed 14925 | 50 811 952 417 1290 2253 3920 1566 1044 842 1780 Spaces Moved 6980 | 46 463 491 220 635 816 1731 705 560 455 858 Core 7 | 4 . . . . . . . . . 3 Treads 27 | . . . . . 26 1 . . . . Legs 12 | . . . . . . . . . . 12 Wheels 6934 | 42 463 491 220 635 790 1730 705 560 455 843 Hover . | . . . . . . . . . . . Flight . | . . . . . . . . . . . Fastest Speed 50 | 50 100 145 190 175 175 145 160 175 175 135 Average Speed 174 | 86 127 152 190 189 199 174 172 175 175 175 Slowest Speed 650 | 100 145 190 190 190 330 650 175 175 175 350 Overloaded Moves . | . . . . . . . . . . . Propulsion Burnouts . | . . . . . . . . . . . Robots Hopped . | . . . . . . . . . . . Cave-ins Triggered . | . . . . . . . . . . . Exploration Rate (%) 62 | 3 72 79 58 99 80 46 19 74 68 84 Regions Visited 10 Branch Regions 6 Pre-discovered Areas 5 | . . 1 1 . . . . . . 3 Known Exits Taken 4 | . . . . . 1 1 1 . 1 . Unknown Exits Taken 6 | 1 1 1 1 1 . . . 1 . . Scrap Searched 7 | . . 1 . . . . . . 4 2 Spaces Dug . | . . . . . . . . . . . Terrain Destroyed 319 | . 14 17 . 49 59 106 42 19 11 2 Melee . | . . . . . . . . . . . Projectile 68 | . . . . . . 2 34 19 11 2 AOE 251 | . 14 17 . 49 59 104 8 . . . Terrain Rammed . | . . . . . . . . . . . Walls Destroyed . | . . . . . . . . . . . Machines Disabled . | . . . . . . . . . . . Actions | -11 -10 -10 -10 -9 -8 -7 -6 -6 -6 -6 --------- Run | Scr Mat Min Exi Min Mat Fac Fac Low Low Zio Total 8769 | 53 577 665 219 684 1169 2362 967 589 478 1006 Wait 773 | . 25 93 . 17 109 313 149 16 9 42 Move 6970 | 45 462 490 219 634 815 1730 704 559 454 858 Hop . | . . . . . . . . . . . Pick Up 100 | 3 19 10 . 3 18 26 14 . 2 5 Fast Attach 69 | 5 2 1 . 2 19 19 10 . 1 10 Attach 36 | . 1 . . . 12 7 3 . . 13 Detach 4 | . . . . . 3 . 1 . . . Swap 85 | . 8 11 . 5 19 29 9 . 2 2 Drop 112 | . 5 9 . 4 20 40 26 . 1 7 Fire 468 | . 55 21 . 19 154 118 40 14 9 38 Melee 50 | . . . . . . 19 . . . 31 Ram . | . . . . . . . . . . . Kick . | . . . . . . . . . . . Crush . | . . . . . . . . . . . Escape Stasis 16 | . . . . . . 8 8 . . . Rewire 3 | . . . . . . . 3 . . . Trap 83 | . . 30 . . . 53 . . . . Miscellaneous . | . . . . . . . . . . . Route ------- -11/Scrapyard -10/Materials (discovered 4 exits: [*Mat x2] / *Min x2) -10/Mines -10/Exiles (discovered 2 exits: [*Min x2]) -9/Mines (discovered 2 exits: *Mat x2) -8/Materials (discovered 3 exits: *Fac x3) -7/Factory (discovered 4 exits: *Fac x4) -6/Factory (discovered 2 exits: *Low x2) -6/Lower Caves -6/Lower Caves (discovered 2 exits: *Fac / *Zio) -6/Zion (discovered 1 exit: [*Pro]) History --------- Turn | Location | Event 14 | -11/Scrapyard | Discovered new exit (range 16) 51 | -11/Scrapyard | Entered Materials 273 | -10/Materials | Discovered new exit (range 15) 314 | -10/Materials | Build established: Mutant 338 | -10/Materials | Discovered new exit (range 12) 422 | -10/Materials | Discovered new exit (range 16) 658 | -10/Materials | Discovered new exit (range 3) 862 | -10/Materials | Entered Mines 870 | -10/Mines | Learned location of 1 exit from Materials 1281 | -10/Mines | Learned location of Storage (-7) 1375 | -10/Mines | Learned 2 Materials zone layouts 1430 | -10/Mines | Deemed a non-threat by the Exiles lab entrance 1598 | -10/Mines | Met a Derelict who couldn't figure out how to use a Trap Extractor 1807 | -10/Mines | Discovered new exit (range 5) 1814 | -10/Mines | Entered Exiles 1847 | -10/Exiles | Discovered new exit (range 15) 1864 | -10/Exiles | Met 8R-AWN 1900 | -10/Exiles | Met EX-HEX 1972 | -10/Exiles | Met EX-DEC 2012 | -10/Exiles | Learned location of Zion (-6) 2215 | -10/Exiles | Discovered new exit (range 10) 2231 | -10/Exiles | Entered Mines 2297 | -9/Mines | Discovered new exit (range 13) 2325 | -9/Mines | Received a Rocket Launcher from a helpful Derelict 2396 | -9/Mines | Core integrity fell below 50% 2430 | -9/Mines | Discovered new exit (range 9) 2627 | -9/Mines | A weapon hastily lodged in a ceiling crevice suddenly fell to the ground 3521 | -9/Mines | Entered Materials 3521 | -8/Materials | Evolved 4 slots: Power x1, Utility x1, Weapon x2 3522 | -8/Materials | Identified exit to Factory 4176 | -8/Materials | Lost 3 parts (1p1n1u) 4218 | -8/Materials | Build established: Tank 4326 | -8/Materials | Lost 5 parts (1p2n2w) 4503 | -8/Materials | Garrison activated, responded to threat 4572 | -8/Materials | Lost 4 parts (1p1n2w) 4695 | -8/Materials | Discovered exit to Factory (range 10) 4938 | -8/Materials | Core integrity fell below 50% 5060 | -8/Materials | Build established: Scavenger-Tank 5312 | -8/Materials | Lost 4 parts (1u3w) 5335 | -8/Materials | System corruption reached 10% 5354 | -8/Materials | System corruption reached 30% 5774 | -8/Materials | Entered Factory 5774 | -7/Factory | Evolved 2 slots: Utility x2 5828 | -7/Factory | Build established: Scavenger-Mutant 6299 | -7/Factory | Build established: Scavenger-Tank 7501 | -7/Factory | Build established: Mutant 7529 | -7/Factory | Discovered new exit (range 7) 7891 | -7/Factory | Repaired Prc. Shock Rifle 7924 | -7/Factory | Discovered new exit (range 15) 8005 | -7/Factory | Lost 3 parts (1u2w) 8089 | -7/Factory | Identified exit to Factory 8681 | -7/Factory | Build established: Pyromaniac-Tank 8974 | -7/Factory | First assault squad dispatched 9018 | -7/Factory | Lost 3 parts (1p2u) 9061 | -7/Factory | Core integrity fell below 50% 9263 | -7/Factory | Build established: Mutant 9650 | -7/Factory | Fabricated Prc. Shock Rifle (x1) 9674 | -7/Factory | Build established: Scavenger-Tank 9694 | -7/Factory | Entered another Factory area 9694 | -6/Factory | Evolved 2 slots: Utility x2 9906 | -6/Factory | Spotted B-75 Beast 10005 | -6/Factory | Destroyed B-75 Beast 10075 | -6/Factory | Garrison activated, responded to threat 10925 | -6/Factory | Repaired Imp. Cooling System 10945 | -6/Factory | Garrison activated, responded to threat 11158 | -6/Factory | Identified exit to Lower Caves 11260 | -6/Factory | Entered Lower Caves 12230 | -6/Lower Caves | Discovered new exit (range 8) 12304 | -6/Lower Caves | Entered another Lower Caves area 12375 | -6/Lower Caves | Discovered new exit (range 5) 12426 | -6/Lower Caves | Identified exit to Factory 12690 | -6/Lower Caves | Encountered a Warlord checkpoint 12899 | -6/Lower Caves | Identified exit to Zion 13146 | -6/Lower Caves | Entered Zion 13232 | -6/Zion | Discovered new exit (range 11) 13313 | -6/Zion | Given the Hacking Drone Bay 13314 | -6/Zion | Found Prototype Device 13603 | -6/Zion | Found Prototype Processor 13603 | -6/Zion | Identified Spectral Analyzer 13619 | -6/Zion | Found Prototype Processor 13619 | -6/Zion | Identified Exp. Target Analyzer 13680 | -6/Zion | Learned Factory stockpile data 14143 | -6/Zion | Build established: Scavenger-Mutant 14504 | -6/Zion | Attacked by Zionites 14737 | -6/Zion | 7V-RTL came to Zion's defense 14846 | -6/Zion | Core integrity fell below 50% 14911 | -6/Zion | Core integrity fell below 20% 14926 | -6/Zion | Destroyed by JM-5U3(z) with Makeshift Laser Last Messages --------------- 14879_ Penetrated by Slug. 14879_ Hvy. Plasma Cannon destroyed. 14881_ Mak. Sword follow-up attack on 7V-RTL. 14884_ Penetrated by Slug. 14885_ Acquired Imp. Deuterium Engine. 14886_ Powered Hammer follow-up attack on 7V-RTL. 14889_ Penetrated by Slug. 14889_ Mak. Leg destroyed. 14890_ Powered Hammer follow-up attack on 7V-RTL. 14896_ Acquired 10 matter. 14903_ Acquired Mak. Leg. 14904_ Acquired 10 matter. 14907_ Slug penetrates Twisted Machinery. 14908_ Mak. Sword follow-up attack on 7V-RTL. 14909_ WD-L7D(z) pulls a Mak. Axe out of the Twisted Machinery. 14915_ Penetrated by Slug. 14915_ Imp. Deuterium Engine destroyed. 14920_ Penetrated by Slug. 14920_ JM-5U3(z) pulls a Mak. Laser out of the Twisted Machinery. 14925_ WD-L7D(z) destroyed. Map ----- +----------------------------------------------------+ | ?????????????????????????????????????????????????? | | ?????????????????????????????????????????????????? | | ?????????????????????????????????????????????????? | | ?????????????????????????????????????????????????? | | ?????????????????????????????????????????????????? | | ?????????????????????????????????????????????????? | | ?????????????????????????????????????????????????? | | ????????????????????????????????????????????"#???? | | ????????????????????????????????????????????""""#" | | ????????????######?????????????######?????"""""""# | | ????????????#"#""##?###???????##!"#!##????"" "" "" | | ????????????#"""""#?""####????#!! !!#????#" " | | ??????????###"" """"#""""##???#! !!##??###" " | | ?????????## "" """#"" ""#???##"!!##???#""" " | | ???????###"" """"" "###?## # "###?#"" """ | | #?????## """ #"" """###" " #""###"" """ | | ###???#"" " """ ""#""# " """" ""# | | ""##?## " """"""""" "" | | """### "#"" " | | "# ##"" " % """" " "" | | " """ * "" """""""" | | "" "" #" """"" | | = *[=== /% *" " """" | | %/%=%! ! !=!= %* """ "" | | % [[ """#" | | "# """ # ][! %!/% @ ""#""" | | #"###"## %]![/ Y """ ""#"#""" "" | | ###?#### """" "#!z z"""""" """""""""""""" | | #??????#"##"" """ " c | | ???????#"#"" """"I"" | | ???????##""" "" | | ????????#"" """" "##"#"#""""## | | ????????""" "" """"""" """""""""""""" | | ???????"""" """""""#"""""""?????"#"""?" | | ??????? "" """""##????"""????????????# | | ?????" """###????????????????????? | | ???? """ """"#?????????????????????? | | ???? """" """##?#???????????????????? | | ????? "#"" """##"#???????????????????? | | ????? "#"" """""""???????????????????? | | ????? """"" "" "#????????????????????? | | ?????? """"""#"" ""##???????????????????? | | ??" ? ""#"#""" """#???????????????????? | | ?? "" "#""""""" ""##???????????????????? | | ?"" """ """ """" ""#???????????????????? | | ##""""" """ "" " ""#???????????????????? | | ""#"""""""""" "" "" ""##???????????????????? | | """"""""""""" "" """""#????????????????????? | | """""" """" """"##????????????????????? | | """ """"?????????????????????? | +----------------------------------------------------+ Best States ------------- Heat Dissipation 102 Energy Generation 29 Energy Capacity 500 Matter Stores 300 Matter Capacity 300 Sight Range 24 Terrain Scan Density 10 Armor Coverage 600 Resistance: TH 15 Weapon Shielding 90 Evasion (%) 42 Target Analysis 10 Recoil Reduction 2 Offensive Hacking 10 Trap Extractor Capacity 6 Item Schematics ----------------- Imp. Trap Extractor | -8/Materials | Scanalyzed Bore Cannon | -8/Materials | Scanalyzed Rocket Launcher | -8/Materials | Scanalyzed Imp. Signal Interpreter | -8/Materials | Scanalyzed Com. Wheel | -8/Materials | Scanalyzed Arm. Treads | -8/Materials | Scanalyzed Hacking Suite | -7/Factory | Scanalyzed Prc. Shock Rifle | -7/Factory | Scanalyzed Arm. Huge Wheel | -7/Factory | Scanalyzed Imp. Lightning Gun | -6/Factory | Scanalyzed Adv. Heat Sink | -6/Zion | Archive Recoil Nullifier | -6/Zion | Archive Phase Shifter | -6/Zion | Archive Adv. Drone Bay | -6/Zion | Archive EM Disruption Field | -6/Zion | Archive Adv. Hardlight Generator | -6/Zion | Archive Beamcaster | -6/Zion | Archive Imp. Remote Datajack | -6/Zion | Archive Mak. Transmission Jammer | -6/Zion | Archive Imp. Shock Absorption System | -6/Zion | Archive Energy Well | -6/Zion | Archive Antigrav System | -6/Zion | Archive Thermal Shield | -6/Zion | Archive Hardcell Cannon | -6/Zion | Archive Robot Schematics ------------------ X-67 Chaingunner | -6/Zion | Archive K-01 Serf | -6/Zion | Archive T-07 Excavator | -6/Zion | Archive L-61 Swordsman | -6/Zion | Archive Fabricated ------------ Prc. Shock Rifle | x1 | -7/Factory Alien Tech Used ----------------- None Achievements -------------- None Challenges ------------ None Game ------ Seed ThrusterSubatomicCleaver Manual? 0 Play Time 02:25:27 Cumulative 147.0 hours Start 2022.09.25 @ 22:14:13 End 2022.09.26 @ 00:40:54 Sessions 1 Manual Loads 0 Difficulty Rogue Special Mode None Game No. 122 Rogue 119 Adventurer 3 Explorer 0 Win Type - Total 1 Types 1/0/0/0/0/0/0/0/0 Lore% 55 Gallery% 57 Achievement% 49 Wizard Run 0 Options --------- ASCII 0 Keyboard 0 Movement Numpad Keybinds 0 Fullscreen 1 Font 18/SmallcapsGlow Map View 76x50 Tactical HUD 1 Map Filters NONE Filters NONE Steam 1 RUN: 49f2fb08-9350-4318-95d9-c1a14083914d